[Event "Late-Titled-Tuesday-Blitz-June-04-2024"]
[Site "Chess.com"]
[Date "2024.06.04"]
[Round "1"]
[White "FischerKasparow"]
[Black "PotapovaM"]
[Result "0-1"]
[WhiteElo "2098"]
[BlackElo "2539"]
[TimeControl "180+1"]
[EndTime "14:07:06 PDT"]
[Termination "PotapovaM won on time"]

1. e4 {[%clk 0:02:44.6]} 1... c5 {[%clk 0:02:56.8]} 2. Nf3 {[%clk 0:02:43.2]}
2... d6 {[%clk 0:02:53.9]} 3. d4 {[%clk 0:02:43]} 3... cxd4 {[%clk 0:02:52.2]}
4. Nxd4 {[%clk 0:02:43]} 4... Nf6 {[%clk 0:02:52.9]} 5. Nc3 {[%clk 0:02:42.5]}
5... a6 {[%clk 0:02:49.8]} 6. a4 {[%clk 0:02:41.9]} 6... e6 {[%clk 0:02:48.3]}
7. Be2 {[%clk 0:02:39.9]} 7... Be7 {[%clk 0:02:41.4]} 8. O-O {[%clk 0:02:39.9]}
8... O-O {[%clk 0:02:42.1]} 9. Kh1 {[%clk 0:02:38.8]} 9... Nc6 {[%clk
0:02:41.7]} 10. Be3 {[%clk 0:02:38.2]} 10... Bd7 {[%clk 0:02:41.3]} 11. f4
{[%clk 0:02:38.1]} 11... Rc8 {[%clk 0:02:41.5]} 12. Qe1 {[%clk 0:02:36.4]} 12...
Qc7 {[%clk 0:02:39.6]} 13. Qg3 {[%clk 0:02:30.4]} 13... Kh8 {[%clk 0:02:39.8]}
14. Nxc6 {[%clk 0:02:23.7]} 14... Bxc6 {[%clk 0:02:38.4]} 15. e5 {[%clk
0:02:22.7]} 15... Nd5 {[%clk 0:02:37.8]} 16. Nxd5 {[%clk 0:02:20.5]} 16... Bxd5
{[%clk 0:02:37.3]} 17. c3 {[%clk 0:02:17.7]} 17... dxe5 {[%clk 0:02:32.6]} 18.
fxe5 {[%clk 0:02:16.9]} 18... Bc5 {[%clk 0:02:33.3]} 19. Bg5 {[%clk 0:02:02.9]}
19... Be7 {[%clk 0:02:28.8]} 20. Bf4 {[%clk 0:02:02.2]} 20... Rcd8 {[%clk
0:02:21.9]} 21. Rfd1 {[%clk 0:01:52.4]} 21... Qc6 {[%clk 0:02:18.5]} 22. Bd3
{[%clk 0:01:48.8]} 22... Be4 {[%clk 0:02:14.7]} 23. h3 {[%clk 0:01:31]} 23...
Bc5 {[%clk 0:01:24]} 24. Bg5 {[%clk 0:01:22.9]} 24... Rc8 {[%clk 0:01:20.1]} 25.
Qf4 {[%clk 0:01:17.2]} 25... Bg6 {[%clk 0:01:15.3]} 26. h4 {[%clk 0:01:12]}
26... Bb6 {[%clk 0:00:55.5]} 27. h5 {[%clk 0:01:11.4]} 27... Bxh5 {[%clk
0:00:52.2]} 28. Bxh7 {[%clk 0:00:29]} 28... Kxh7 {[%clk 0:00:45.5]} 29. Qh4
{[%clk 0:00:28.4]} 29... g6 {[%clk 0:00:43.9]} 30. Bf6 {[%clk 0:00:23.3]} 30...
Qc4 {[%clk 0:00:26.6]} 31. Qh2 {[%clk 0:00:11]} 31... Qe4 {[%clk 0:00:22.2]} 32.
Re1 {[%clk 0:00:09.9]} 32... Qg4 {[%clk 0:00:20.5]} 0-1

[Event "Late-Titled-Tuesday-Blitz-June-04-2024"]
[Site "Chess.com"]
[Date "2024.06.04"]
[Round "1"]
[White "N_Mullodzhanov"]
[Black "denizozen"]
[Result "0-1"]
[WhiteElo "2500"]
[BlackElo "2929"]
[TimeControl "180+1"]
[EndTime "14:07:09 PDT"]
[Termination "denizozen won by checkmate"]

1. e4 {[%clk 0:03:00.9]} 1... e5 {[%clk 0:02:59.9]} 2. Nf3 {[%clk 0:03:00.5]}
2... Nf6 {[%clk 0:03:00.5]} 3. Nc3 {[%clk 0:02:57.9]} 3... Nc6 {[%clk
0:03:00.8]} 4. d4 {[%clk 0:02:57.7]} 4... exd4 {[%clk 0:03:00.9]} 5. Nxd4 {[%clk
0:02:58.6]} 5... Bb4 {[%clk 0:03:00.8]} 6. Nxc6 {[%clk 0:02:58.6]} 6... bxc6
{[%clk 0:03:01.7]} 7. Bd3 {[%clk 0:02:59]} 7... O-O {[%clk 0:02:59.6]} 8. O-O
{[%clk 0:02:58.8]} 8... d5 {[%clk 0:03:00.2]} 9. exd5 {[%clk 0:02:58.6]} 9...
cxd5 {[%clk 0:03:01.1]} 10. h3 {[%clk 0:02:58.7]} 10... c6 {[%clk 0:03:00.9]}
11. Qf3 {[%clk 0:02:59]} 11... Bd6 {[%clk 0:02:57.6]} 12. Bf4 {[%clk 0:02:59]}
12... Rb8 {[%clk 0:02:57.3]} 13. b3 {[%clk 0:02:58.5]} 13... Be6 {[%clk
0:02:55.8]} 14. Rad1 {[%clk 0:02:57.9]} 14... Qc7 {[%clk 0:02:53.5]} 15. Ne2
{[%clk 0:02:57.2]} 15... Rfe8 {[%clk 0:02:51.3]} 16. Rfe1 {[%clk 0:02:55.9]}
16... c5 {[%clk 0:02:49.7]} 17. c4 {[%clk 0:02:52.7]} 17... d4 {[%clk
0:02:47.2]} 18. Bg5 {[%clk 0:02:45]} 18... Nd7 {[%clk 0:02:45.5]} 19. Bf5 {[%clk
0:02:22]} 19... Ne5 {[%clk 0:02:44.4]} 20. Qe4 {[%clk 0:02:21.9]} 20... Bxf5
{[%clk 0:02:40.2]} 21. Qxf5 {[%clk 0:02:22.8]} 21... Qd7 {[%clk 0:02:34.4]} 22.
Qxd7 {[%clk 0:02:11.7]} 22... Nxd7 {[%clk 0:02:35.3]} 23. Nc1 {[%clk 0:02:11.7]}
23... h6 {[%clk 0:02:33]} 24. Bd2 {[%clk 0:02:05]} 24... Ne5 {[%clk 0:02:30.8]}
25. f4 {[%clk 0:01:55.9]} 25... Nd7 {[%clk 0:02:26.8]} 26. Nd3 {[%clk
0:01:56.1]} 26... Nf6 {[%clk 0:02:26.1]} 27. Rxe8+ {[%clk 0:01:51.3]} 27... Rxe8
{[%clk 0:02:27]} 28. Re1 {[%clk 0:01:51.7]} 28... Rxe1+ {[%clk 0:02:26.5]} 29.
Bxe1 {[%clk 0:01:52.4]} 29... Ne4 {[%clk 0:02:26.3]} 30. Kf1 {[%clk 0:01:45.6]}
30... f5 {[%clk 0:02:26.1]} 31. g4 {[%clk 0:01:44.1]} 31... fxg4 {[%clk
0:02:22.3]} 32. hxg4 {[%clk 0:01:44.3]} 32... Nf6 {[%clk 0:02:23]} 33. b4 {[%clk
0:01:31.2]} 33... cxb4 {[%clk 0:02:19.7]} 34. Bxb4 {[%clk 0:01:30.8]} 34... Bxb4
{[%clk 0:02:17.8]} 35. Nxb4 {[%clk 0:01:31.7]} 35... Nxg4 {[%clk 0:02:12.9]} 36.
c5 {[%clk 0:01:31.5]} 36... Kf7 {[%clk 0:02:00.2]} 37. Ke2 {[%clk 0:01:29.3]}
37... Ke6 {[%clk 0:01:49.3]} 38. Kf3 {[%clk 0:00:41.7]} 38... Nf6 {[%clk
0:01:45.8]} 39. Ke2 {[%clk 0:00:29.2]} 39... Nd5 {[%clk 0:01:34.7]} 40. f5+
{[%clk 0:00:28.4]} 40... Ke5 {[%clk 0:01:29.5]} 41. c6 {[%clk 0:00:25.9]} 41...
Nc7 {[%clk 0:01:22.4]} 42. Nc2 {[%clk 0:00:25.6]} 42... Ke4 {[%clk 0:01:19.4]}
43. Kd2 {[%clk 0:00:22.7]} 43... h5 {[%clk 0:01:18.6]} 44. Ne1 {[%clk
0:00:19.3]} 44... h4 {[%clk 0:01:18.3]} 45. Nd3 {[%clk 0:00:16.1]} 45... Kxf5
{[%clk 0:01:16.2]} 46. Nf2 {[%clk 0:00:16.3]} 46... Ke5 {[%clk 0:01:11.5]} 47.
Kd3 {[%clk 0:00:16.5]} 47... Kd5 {[%clk 0:01:11.5]} 48. a4 {[%clk 0:00:13.5]}
48... a5 {[%clk 0:01:09.6]} 49. Nh3 {[%clk 0:00:12.9]} 49... Ne6 {[%clk
0:01:07.1]} 50. Kd2 {[%clk 0:00:08.5]} 50... Kxc6 {[%clk 0:01:07.1]} 51. Kd3
{[%clk 0:00:09.1]} 51... Kd5 {[%clk 0:01:07]} 52. Kd2 {[%clk 0:00:09.3]} 52...
g5 {[%clk 0:01:07.3]} 53. Kd3 {[%clk 0:00:08.6]} 53... Nf4+ {[%clk 0:01:07.7]}
54. Nxf4+ {[%clk 0:00:08.4]} 54... gxf4 {[%clk 0:01:08.6]} 55. Ke2 {[%clk
0:00:09.2]} 55... Ke4 {[%clk 0:01:09]} 56. Kf2 {[%clk 0:00:10.1]} 56... d3
{[%clk 0:01:09.5]} 57. Kg2 {[%clk 0:00:10]} 57... d2 {[%clk 0:01:10.1]} 58. Kg1
{[%clk 0:00:10.2]} 58... d1=Q+ {[%clk 0:01:10.5]} 59. Kg2 {[%clk 0:00:11.1]}
59... Qg4+ {[%clk 0:01:10.8]} 60. Kf2 {[%clk 0:00:11.5]} 60... Qg3+ {[%clk
0:01:10.4]} 61. Kf1 {[%clk 0:00:11.9]} 61... Qh2 {[%clk 0:01:10.8]} 62. Ke1
{[%clk 0:00:12]} 62... Qg2 {[%clk 0:01:11.5]} 63. Kd1 {[%clk 0:00:12.3]} 63...
Qf2 {[%clk 0:01:12.4]} 64. Kc1 {[%clk 0:00:12.8]} 64... Qe2 {[%clk 0:01:13.3]}
65. Kb1 {[%clk 0:00:13.2]} 65... Qd2 {[%clk 0:01:14.2]} 66. Ka1 {[%clk
0:00:14.1]} 66... Kd3 {[%clk 0:01:15.1]} 67. Kb1 {[%clk 0:00:14.4]} 67... Kc3
{[%clk 0:01:16]} 68. Ka1 {[%clk 0:00:14.8]} 68... Qb2# {[%clk 0:01:16.9]} 0-1

[Event "Late-Titled-Tuesday-Blitz-June-04-2024"]
[Site "Chess.com"]
[Date "2024.06.04"]
[Round "1"]
[White "Alex_Sahakyan2006"]
[Black "Godzillator"]
[Result "1-0"]
[WhiteElo "2774"]
[BlackElo "2432"]
[TimeControl "180+1"]
[EndTime "14:07:09 PDT"]
[Termination "Alex_Sahakyan2006 won by resignation"]

1. e4 {[%clk 0:02:58.6]} 1... d5 {[%clk 0:03:00.1]} 2. exd5 {[%clk 0:02:58.2]}
2... Qxd5 {[%clk 0:03:00.8]} 3. Nc3 {[%clk 0:02:58.3]} 3... Qd8 {[%clk
0:02:59.9]} 4. Nf3 {[%clk 0:02:56.6]} 4... c6 {[%clk 0:02:59.2]} 5. d4 {[%clk
0:02:54]} 5... Nf6 {[%clk 0:02:59.2]} 6. Bc4 {[%clk 0:02:53.8]} 6... Bf5 {[%clk
0:02:58.3]} 7. Ne5 {[%clk 0:02:53.8]} 7... e6 {[%clk 0:02:58.5]} 8. g4 {[%clk
0:02:41.5]} 8... Be4 {[%clk 0:02:54.9]} 9. Nxe4 {[%clk 0:02:41.2]} 9... Nxe4
{[%clk 0:02:54.9]} 10. Qf3 {[%clk 0:02:41]} 10... Nd6 {[%clk 0:02:55.1]} 11. Bb3
{[%clk 0:02:39.8]} 11... Qf6 {[%clk 0:02:53.8]} 12. Qe2 {[%clk 0:02:29]} 12...
Nd7 {[%clk 0:02:48.8]} 13. h4 {[%clk 0:02:25.5]} 13... h6 {[%clk 0:02:32]} 14.
Rh3 {[%clk 0:02:04.9]} 14... Nb5 {[%clk 0:02:23.6]} 15. c3 {[%clk 0:01:51.7]}
15... Nxe5 {[%clk 0:02:23]} 16. dxe5 {[%clk 0:01:52.6]} 16... Qd8 {[%clk
0:02:17.5]} 17. g5 {[%clk 0:01:48.6]} 17... hxg5 {[%clk 0:02:06.7]} 18. Bxg5
{[%clk 0:01:49.5]} 18... Be7 {[%clk 0:02:03.8]} 19. Rd3 {[%clk 0:01:40.9]} 19...
Qa5 {[%clk 0:01:53.5]} 20. O-O-O {[%clk 0:01:31.2]} 20... Bxg5+ {[%clk 0:01:21]}
21. hxg5 {[%clk 0:01:32.1]} 21... g6 {[%clk 0:01:04.3]} 22. Qf3 {[%clk
0:01:21.9]} 22... Rh7 {[%clk 0:00:30.9]} 23. Qf6 {[%clk 0:01:09.5]} 23... Qc7
{[%clk 0:00:29.7]} 24. a4 {[%clk 0:01:00.2]} 24... a6 {[%clk 0:00:28.4]} 25.
axb5 {[%clk 0:00:55.1]} 25... axb5 {[%clk 0:00:28.7]} 26. Kc2 {[%clk 0:00:55.4]}
26... Qe7 {[%clk 0:00:19.5]} 27. Qxe7+ {[%clk 0:00:31.2]} 27... Kxe7 {[%clk
0:00:19.3]} 28. Rd7+ {[%clk 0:00:32.1]} 28... Kf8 {[%clk 0:00:17.5]} 29. Rxb7
{[%clk 0:00:33]} 29... Rh2 {[%clk 0:00:15.5]} 30. Rd2 {[%clk 0:00:33.1]} 30...
Rc8 {[%clk 0:00:13.9]} 31. Kb1 {[%clk 0:00:32]} 31... Kg7 {[%clk 0:00:14]} 32.
Bxe6 {[%clk 0:00:31.5]} 32... Rf8 {[%clk 0:00:13]} 33. Bd7 {[%clk 0:00:29.2]}
33... Kg8 {[%clk 0:00:11.8]} 34. e6 {[%clk 0:00:28.7]} 34... fxe6 {[%clk
0:00:10.2]} 35. Bxe6+ {[%clk 0:00:29.6]} 35... Kh8 {[%clk 0:00:10.5]} 36. Rdd7
{[%clk 0:00:29.4]} 36... Rh1+ {[%clk 0:00:04.3]} 37. Ka2 {[%clk 0:00:29]} 37...
Rh2 {[%clk 0:00:04.1]} 38. Kb3 {[%clk 0:00:28.7]} 38... Rh3 {[%clk 0:00:02.5]}
39. Re7 {[%clk 0:00:28.3]} 1-0

[Event "Late-Titled-Tuesday-Blitz-June-04-2024"]
[Site "Chess.com"]
[Date "2024.06.04"]
[Round "1"]
[White "Mikhail_Golubev"]
[Black "Sanan_Sjugirov"]
[Result "0-1"]
[WhiteElo "2501"]
[BlackElo "2951"]
[TimeControl "180+1"]
[EndTime "14:07:12 PDT"]
[Termination "Sanan_Sjugirov won by resignation"]

1. e4 {[%clk 0:03:00.9]} 1... e6 {[%clk 0:02:54.5]} 2. d4 {[%clk 0:02:59.8]}
2... d5 {[%clk 0:02:55]} 3. e5 {[%clk 0:02:59.4]} 3... c5 {[%clk 0:02:54.7]} 4.
c3 {[%clk 0:02:59.8]} 4... Nc6 {[%clk 0:02:55.4]} 5. Nf3 {[%clk 0:02:59.5]} 5...
Bd7 {[%clk 0:02:56]} 6. Be2 {[%clk 0:02:58.9]} 6... Nge7 {[%clk 0:02:55.3]} 7.
Na3 {[%clk 0:02:57.9]} 7... cxd4 {[%clk 0:02:52.4]} 8. cxd4 {[%clk 0:02:57]}
8... Nf5 {[%clk 0:02:52.8]} 9. Nc2 {[%clk 0:02:56.4]} 9... Rc8 {[%clk
0:02:46.3]} 10. O-O {[%clk 0:02:54]} 10... Be7 {[%clk 0:02:43.1]} 11. Bd3 {[%clk
0:02:49.9]} 11... O-O {[%clk 0:02:38.1]} 12. Bxf5 {[%clk 0:02:32]} 12... exf5
{[%clk 0:02:39]} 13. Re1 {[%clk 0:02:29.3]} 13... Be6 {[%clk 0:02:38.5]} 14. Qd3
{[%clk 0:01:42]} 14... h6 {[%clk 0:02:28.4]} 15. Bd2 {[%clk 0:01:30.6]} 15... a6
{[%clk 0:02:18.4]} 16. a3 {[%clk 0:01:17.9]} 16... Qd7 {[%clk 0:02:10.5]} 17. h4
{[%clk 0:01:14.8]} 17... Rc7 {[%clk 0:01:44.5]} 18. Bf4 {[%clk 0:01:06.6]} 18...
Rfc8 {[%clk 0:01:44.1]} 19. Ne3 {[%clk 0:00:57.6]} 19... Na5 {[%clk 0:01:43.3]}
20. h5 {[%clk 0:00:51.3]} 20... Nc4 {[%clk 0:01:42.4]} 21. Rab1 {[%clk
0:00:44.4]} 21... b5 {[%clk 0:01:40.4]} 22. g3 {[%clk 0:00:43.4]} 22... a5
{[%clk 0:01:36.8]} 23. Ng2 {[%clk 0:00:41.4]} 23... a4 {[%clk 0:01:35]} 24. Bd2
{[%clk 0:00:33.4]} 24... Nxd2 {[%clk 0:01:19]} 25. Nxd2 {[%clk 0:00:33.5]} 25...
f4 {[%clk 0:01:13.7]} 26. Nxf4 {[%clk 0:00:29.4]} 26... Bf5 {[%clk 0:01:13.8]}
27. Qf3 {[%clk 0:00:29.9]} 27... Bxb1 {[%clk 0:01:13.7]} 28. Nxb1 {[%clk
0:00:28.9]} 28... Rc1 {[%clk 0:01:11.6]} 29. Rd1 {[%clk 0:00:20.9]} 29... Bg5
{[%clk 0:00:57.2]} 30. Nc3 {[%clk 0:00:15.9]} 30... Bxf4 {[%clk 0:00:55.7]} 31.
gxf4 {[%clk 0:00:15.6]} 31... Rxd1+ {[%clk 0:00:55]} 32. Qxd1 {[%clk 0:00:16.2]}
32... Rc4 {[%clk 0:00:48.9]} 33. Qf3 {[%clk 0:00:07.7]} 33... Rxd4 {[%clk
0:00:47.2]} 34. f5 {[%clk 0:00:08.3]} 34... Qd8 {[%clk 0:00:42.9]} 35. f6 {[%clk
0:00:07.4]} 35... Qd7 {[%clk 0:00:42.5]} 36. Kg2 {[%clk 0:00:05.6]} 36... b4
{[%clk 0:00:33.2]} 37. axb4 {[%clk 0:00:05]} 37... Qg4+ {[%clk 0:00:33.8]} 38.
Qxg4 {[%clk 0:00:04.7]} 38... Rxg4+ {[%clk 0:00:34.7]} 39. Kf3 {[%clk 0:00:05]}
39... Rxb4 {[%clk 0:00:35.4]} 40. Nxd5 {[%clk 0:00:05.2]} 40... Rxb2 {[%clk
0:00:33.5]} 41. Ne7+ {[%clk 0:00:01.9]} 41... Kf8 {[%clk 0:00:33.8]} 42. Nf5
{[%clk 0:00:01.4]} 42... gxf6 {[%clk 0:00:33.5]} 0-1

[Event "Late-Titled-Tuesday-Blitz-June-04-2024"]
[Site "Chess.com"]
[Date "2024.06.04"]
[Round "1"]
[White "ZverevLev"]
[Black "Marielchessy"]
[Result "1-0"]
[WhiteElo "2641"]
[BlackElo "2333"]
[TimeControl "180+1"]
[EndTime "14:07:12 PDT"]
[Termination "ZverevLev won on time"]

1. e4 {[%clk 0:03:00.4]} 1... c5 {[%clk 0:02:59.2]} 2. Nf3 {[%clk 0:02:58.4]}
2... d6 {[%clk 0:02:58.9]} 3. d4 {[%clk 0:02:58]} 3... cxd4 {[%clk 0:02:59.4]}
4. Nxd4 {[%clk 0:02:58.3]} 4... Nf6 {[%clk 0:02:57.8]} 5. Nc3 {[%clk 0:02:57.8]}
5... a6 {[%clk 0:02:58]} 6. Bg5 {[%clk 0:02:57.7]} 6... e6 {[%clk 0:02:57.9]} 7.
f4 {[%clk 0:02:57.3]} 7... Be7 {[%clk 0:02:56.7]} 8. Qf3 {[%clk 0:02:57]} 8...
Qc7 {[%clk 0:02:53]} 9. O-O-O {[%clk 0:02:55.7]} 9... Nbd7 {[%clk 0:02:53]} 10.
g4 {[%clk 0:02:55]} 10... b5 {[%clk 0:02:51.7]} 11. Bxf6 {[%clk 0:02:51.2]}
11... Nxf6 {[%clk 0:02:51.5]} 12. g5 {[%clk 0:02:48.7]} 12... Nd7 {[%clk
0:02:51.1]} 13. f5 {[%clk 0:02:45.6]} 13... Bxg5+ {[%clk 0:02:50.9]} 14. Kb1
{[%clk 0:02:45.4]} 14... Ne5 {[%clk 0:02:51.4]} 15. Qh5 {[%clk 0:02:45.3]} 15...
Qd8 {[%clk 0:02:51.5]} 16. Nxe6 {[%clk 0:02:37.2]} 16... Bxe6 {[%clk 0:02:50.4]}
17. fxe6 {[%clk 0:02:38.1]} 17... g6 {[%clk 0:02:47.1]} 18. exf7+ {[%clk
0:02:37.8]} 18... Kxf7 {[%clk 0:02:46.7]} 19. Qe2 {[%clk 0:02:35.7]} 19... Rc8
{[%clk 0:02:36.1]} 20. Nd5 {[%clk 0:02:32.8]} 20... Rf8 {[%clk 0:02:19]} 21. Bh3
{[%clk 0:02:29.9]} 21... Rc5 {[%clk 0:02:15.9]} 22. Rhf1+ {[%clk 0:02:27.7]}
22... Kg7 {[%clk 0:02:12.1]} 23. Rxf8 {[%clk 0:02:26.5]} 23... Qxf8 {[%clk
0:02:09.6]} 24. Rf1 {[%clk 0:02:26.3]} 24... Qd8 {[%clk 0:01:58.1]} 25. Qf2
{[%clk 0:02:25.2]} 25... a5 {[%clk 0:01:44.3]} 26. Rd1 {[%clk 0:02:04.3]} 26...
a4 {[%clk 0:01:26]} 27. Qg3 {[%clk 0:02:04.1]} 27... Bf6 {[%clk 0:01:19.9]} 28.
Nf4 {[%clk 0:02:01.1]} 28... Qb6 {[%clk 0:01:01]} 29. Ne6+ {[%clk 0:01:59.1]}
29... Kh8 {[%clk 0:01:01.1]} 30. Nxc5 {[%clk 0:01:50.6]} 30... Qxc5 {[%clk
0:01:00]} 31. Qf4 {[%clk 0:01:46.5]} 31... Bg7 {[%clk 0:00:50.9]} 32. Qg5 {[%clk
0:01:42.5]} 32... h5 {[%clk 0:00:26.4]} 33. Qd8+ {[%clk 0:01:18.7]} 33... Kh7
{[%clk 0:00:22.9]} 34. Qxd6 {[%clk 0:01:18.9]} 34... Qe3 {[%clk 0:00:17.1]} 35.
Be6 {[%clk 0:01:17]} 35... Qxe4 {[%clk 0:00:11.2]} 36. Qd8 {[%clk 0:01:14.6]}
36... a3 {[%clk 0:00:10.4]} 37. Bg8+ {[%clk 0:01:12.8]} 37... Kh6 {[%clk
0:00:10.6]} 38. Qd2+ {[%clk 0:01:12.6]} 38... g5 {[%clk 0:00:10.3]} 39. Qd6+
{[%clk 0:01:12]} 39... Ng6 {[%clk 0:00:09.6]} 40. bxa3 {[%clk 0:01:05.8]} 40...
Qf5 {[%clk 0:00:03.3]} 41. Qe6 {[%clk 0:00:41.2]} 41... Qf8 {[%clk 0:00:02.4]}
42. Bf7 {[%clk 0:00:40]} 1-0

[Event "Late-Titled-Tuesday-Blitz-June-04-2024"]
[Site "Chess.com"]
[Date "2024.06.04"]
[Round "1"]
[White "bazar-wokzal"]
[Black "glucolisis04"]
[Result "1-0"]
[WhiteElo "2584"]
[BlackElo "2267"]
[TimeControl "180+1"]
[EndTime "14:07:13 PDT"]
[Termination "bazar-wokzal won by resignation"]

1. e4 {[%clk 0:02:58.5]} 1... c5 {[%clk 0:02:58.3]} 2. c3 {[%clk 0:02:57.8]}
2... d5 {[%clk 0:02:56.8]} 3. exd5 {[%clk 0:02:57.4]} 3... Qxd5 {[%clk
0:02:56.9]} 4. d4 {[%clk 0:02:57.3]} 4... Nf6 {[%clk 0:02:57.1]} 5. Nf3 {[%clk
0:02:56.8]} 5... Bg4 {[%clk 0:02:55.7]} 6. dxc5 {[%clk 0:02:56]} 6... Qxd1+
{[%clk 0:02:50.5]} 7. Kxd1 {[%clk 0:02:55.9]} 7... e5 {[%clk 0:02:49.4]} 8. b4
{[%clk 0:02:54]} 8... e4 {[%clk 0:02:41.9]} 9. h3 {[%clk 0:02:53.2]} 9... Bxf3+
{[%clk 0:02:32.1]} 10. gxf3 {[%clk 0:02:52.9]} 10... exf3 {[%clk 0:02:32.8]} 11.
Nd2 {[%clk 0:02:51.6]} 11... Nc6 {[%clk 0:02:28.9]} 12. Nxf3 {[%clk 0:02:51.3]}
12... O-O-O+ {[%clk 0:02:28]} 13. Kc2 {[%clk 0:02:49.2]} 13... Ne4 {[%clk
0:02:08.4]} 14. Be3 {[%clk 0:02:47.4]} 14... Be7 {[%clk 0:02:03.4]} 15. Bb5
{[%clk 0:02:43.1]} 15... Bf6 {[%clk 0:01:57.4]} 16. Bxc6 {[%clk 0:02:30.4]}
16... bxc6 {[%clk 0:01:57.2]} 17. Bd4 {[%clk 0:02:21.4]} 17... Bxd4 {[%clk
0:01:52.7]} 18. Nxd4 {[%clk 0:01:57.6]} 18... Nxf2 {[%clk 0:01:41.7]} 19. Rhf1
{[%clk 0:01:53.3]} 19... Nxh3 {[%clk 0:01:39.9]} 20. Rxf7 {[%clk 0:01:53.2]}
20... Rd7 {[%clk 0:01:39.1]} 21. Raf1 {[%clk 0:01:49.1]} 21... Ng5 {[%clk
0:01:24.9]} 22. R7f5 {[%clk 0:01:49]} 22... h6 {[%clk 0:01:14.9]} 23. Nxc6
{[%clk 0:01:47]} 23... Re8 {[%clk 0:00:59.3]} 24. Kb3 {[%clk 0:01:32.4]} 24...
Re3 {[%clk 0:00:45.8]} 25. Rf8+ {[%clk 0:01:25]} 25... Kb7 {[%clk 0:00:45.4]}
26. Na5+ {[%clk 0:01:18.8]} 26... Kc7 {[%clk 0:00:43.7]} 27. Ra8 {[%clk
0:01:14.2]} 27... Ne6 {[%clk 0:00:20.6]} 28. Rxa7+ {[%clk 0:01:10.9]} 28... Kc8
{[%clk 0:00:21.1]} 29. Rxd7 {[%clk 0:01:06.6]} 29... Kxd7 {[%clk 0:00:22]} 30.
Rf7+ {[%clk 0:01:06.3]} 30... Ke8 {[%clk 0:00:20.5]} 31. Ra7 {[%clk 0:01:01]}
31... h5 {[%clk 0:00:13.4]} 32. Nc4 {[%clk 0:00:54.4]} 32... Nd4+ {[%clk
0:00:12.1]} 33. Kb2 {[%clk 0:00:40.1]} 33... Re2+ {[%clk 0:00:12.6]} 34. Kc1
{[%clk 0:00:35.7]} 34... Nf3 {[%clk 0:00:06.6]} 35. Rxg7 {[%clk 0:00:31]} 35...
Rxa2 {[%clk 0:00:07.2]} 36. Nd6+ {[%clk 0:00:29.8]} 36... Kf8 {[%clk 0:00:03.4]}
37. Rf7+ {[%clk 0:00:29.8]} 37... Kg8 {[%clk 0:00:03.9]} 38. Rxf3 {[%clk
0:00:30.5]} 38... h4 {[%clk 0:00:04.5]} 39. c6 {[%clk 0:00:29.5]} 39... Ra1+
{[%clk 0:00:02.9]} 40. Kb2 {[%clk 0:00:29.2]} 40... Ra7 {[%clk 0:00:02.1]} 1-0

[Event "Late-Titled-Tuesday-Blitz-June-04-2024"]
[Site "Chess.com"]
[Date "2024.06.04"]
[Round "1"]
[White "Shankland"]
[Black "KorolDimitriy75"]
[Result "1-0"]
[WhiteElo "2961"]
[BlackElo "2503"]
[TimeControl "180+1"]
[EndTime "14:07:16 PDT"]
[Termination "Shankland won by resignation"]

1. e4 {[%clk 0:03:00.9]} 1... c5 {[%clk 0:03:00.1]} 2. Nf3 {[%clk 0:03:00.7]}
2... d6 {[%clk 0:03:00.6]} 3. d4 {[%clk 0:03:00.7]} 3... cxd4 {[%clk 0:03:01.5]}
4. Nxd4 {[%clk 0:03:00.9]} 4... Nf6 {[%clk 0:03:02.1]} 5. Nc3 {[%clk 0:03:01.3]}
5... g6 {[%clk 0:03:03]} 6. Be3 {[%clk 0:02:58.9]} 6... Bg7 {[%clk 0:03:03.6]}
7. f3 {[%clk 0:02:58.6]} 7... O-O {[%clk 0:03:04.5]} 8. Qd2 {[%clk 0:02:58.8]}
8... Nc6 {[%clk 0:03:05.4]} 9. O-O-O {[%clk 0:02:58.7]} 9... d5 {[%clk
0:03:05.9]} 10. exd5 {[%clk 0:02:53.9]} 10... Nxd5 {[%clk 0:03:06.8]} 11. Nxc6
{[%clk 0:02:54.1]} 11... bxc6 {[%clk 0:03:07.7]} 12. Bd4 {[%clk 0:02:54.5]}
12... e5 {[%clk 0:03:08.3]} 13. Bc5 {[%clk 0:02:54.6]} 13... Be6 {[%clk
0:03:08.9]} 14. Ne4 {[%clk 0:02:52.5]} 14... Rb8 {[%clk 0:03:08.9]} 15. h4
{[%clk 0:02:48.2]} 15... f5 {[%clk 0:03:08.8]} 16. Ng5 {[%clk 0:02:47.2]} 16...
e4 {[%clk 0:03:09.7]} 17. b3 {[%clk 0:02:42.6]} 17... Qf6 {[%clk 0:02:25.1]} 18.
Bd4 {[%clk 0:02:39.9]} 18... e3 {[%clk 0:02:18.9]} 19. Qa5 {[%clk 0:02:19.2]}
19... Qe7 {[%clk 0:02:10]} 20. Nxe6 {[%clk 0:02:14.2]} 20... Qxe6 {[%clk
0:01:58.4]} 21. Bc4 {[%clk 0:02:00.9]} 21... Rbd8 {[%clk 0:01:14.9]} 22. Rhe1
{[%clk 0:01:55.8]} 22... Bxd4 {[%clk 0:01:07.6]} 23. Rxd4 {[%clk 0:01:53.7]}
23... Qe5 {[%clk 0:01:07.5]} 24. Qxa7 {[%clk 0:01:18.6]} 24... Rf7 {[%clk
0:00:38.7]} 25. Qc5 {[%clk 0:01:13.7]} 25... f4 {[%clk 0:00:27.1]} 26. a4 {[%clk
0:01:11.9]} 26... Kg7 {[%clk 0:00:25]} 27. a5 {[%clk 0:01:10.7]} 27... Qf6
{[%clk 0:00:20.6]} 28. Red1 {[%clk 0:00:43.4]} 28... Nc3 {[%clk 0:00:15]} 29.
Qg5 {[%clk 0:00:36.4]} 29... Rxd4 {[%clk 0:00:08.7]} 30. Qxf6+ {[%clk
0:00:36.3]} 30... Kxf6 {[%clk 0:00:09.6]} 31. Rxd4 {[%clk 0:00:36.5]} 31... Re7
{[%clk 0:00:09.1]} 32. Rxf4+ {[%clk 0:00:30.6]} 32... Kg7 {[%clk 0:00:09.4]} 33.
Kb2 {[%clk 0:00:29.4]} 33... e2 {[%clk 0:00:09.3]} 34. Bxe2 {[%clk 0:00:29.5]}
34... Nxe2 {[%clk 0:00:10.2]} 35. Rc4 {[%clk 0:00:29.4]} 35... Ng3 {[%clk
0:00:09.9]} 36. Rxc6 {[%clk 0:00:25.7]} 36... Nf5 {[%clk 0:00:09.7]} 37. b4
{[%clk 0:00:25.4]} 37... Nxh4 {[%clk 0:00:07.7]} 38. a6 {[%clk 0:00:24.9]} 38...
Nxg2 {[%clk 0:00:07.1]} 39. b5 {[%clk 0:00:25.5]} 39... h5 {[%clk 0:00:05.8]}
40. b6 {[%clk 0:00:25.3]} 40... h4 {[%clk 0:00:05.3]} 41. Rc7 {[%clk 0:00:25.1]}
41... Kf6 {[%clk 0:00:04.2]} 42. Rxe7 {[%clk 0:00:25]} 42... Kxe7 {[%clk
0:00:05.1]} 43. b7 {[%clk 0:00:25.4]} 1-0